fUSD/lending_fUSD_20240813
["ID","MTS","AMOUNT","RATE_DAILY","PERIOD"]
[334757118,1723535541790,-500.0,0.00020273,2]
[334757119,1723535541801,-506.97165058,0.00020273,2]
[334757120,1723535541812,-500.0,0.00020273,2]
[334757121,1723535541823,-500.0,0.00020273,2]
[334757122,1723535541834,-500.0,0.00020273,2]
[334757123,1723535541844,-2849.94,0.00020273,2]
[334757124,1723535541856,-1000.0,0.00020273,2]
[334757125,1723535541865,-500.0,0.00020273,2]
[334757126,1723535541875,-500.0,0.00020273,2]
[334757127,1723535541885,-228.59053765,0.00020273,2]
[334757128,1723535541896,-20000.0,0.00020273,2]
[334757129,1723535541905,-500.0,0.00020273,2]
[334757130,1723535541914,-315.83135935,0.00020273,2]
[334757131,1723535541923,-500.0,0.00020273,2]
[334757132,1723535541933,-500.0,0.00020273,2]
[334757133,1723535541943,-500.0,0.00020273,2]
[334757134,1723535541953,-500.0,0.00020273,2]
[334757135,1723535541962,-506.46,0.00020273,2]
[334757136,1723535541971,-903.07,0.00020273,2]
[334757137,1723535541981,-546.65,0.00020273,2]
[334757138,1723535541990,-500.0,0.00020273,2]
[334757139,1723535541999,-500.0,0.00020273,2]
[334757140,1723535542009,-500.0,0.00020273,2]
[334757141,1723535542018,-626.19,0.00020273,2]
[334757142,1723535542027,-500.0,0.00020273,2]
[334757143,1723535542037,-500.0,0.00020273,2]
[334757144,1723535542047,-500.0,0.00020273,2]
[334757145,1723535542058,-500.0,0.00020273,2]
[334757146,1723535542069,-1249.54,0.00020273,2]
[334757147,1723535542078,-400.0,0.00020273,2]
[334757148,1723535542087,-803.11,0.00020273,2]
[334757149,1723535542095,-500.0,0.00020273,2]
[334757150,1723535542105,-1655.36,0.00020273,2]
[334757151,1723535542114,-500.0,0.00020273,2]
[334757152,1723535542123,-500.0,0.00020273,2]
[334757153,1723535542132,-500.0,0.00020273,2]
[334757154,1723535542141,-320.78000967,0.00020273,2]
[334757155,1723535542151,-500.0,0.00020273,2]
[334757156,1723535542160,-500.0,0.00020273,2]
[334757157,1723535542170,-500.0,0.00020273,2]
[334757158,1723535542180,-500.0,0.00020273,2]
[334757159,1723535542189,-500.0,0.00020273,2]
[334757160,1723535542199,-500.0,0.00020273,2]
[334757161,1723535542208,-500.0,0.00020273,2]
[334757162,1723535542218,-500.0,0.00020273,2]
[334757163,1723535542227,-1068.76,0.00020273,2]
[334757164,1723535542237,-500.0,0.00020273,2]
[334757165,1723535542247,-500.0,0.00020273,2]
[334757166,1723535542256,-500.0,0.00020273,2]
[334757167,1723535542266,-500.0,0.00020273,2]
[334757168,1723535542276,-442.59885691,0.00020273,2]
[334757169,1723535542286,-500.0,0.00020273,2]
[334757170,1723535542296,-500.0,0.00020273,2]
[334757171,1723535542306,-613.06,0.00020273,2]
[334757172,1723535542315,-500.0,0.00020273,2]
[334757173,1723535542324,-500.0,0.00020273,2]
[334757174,1723535542334,-500.0,0.00020273,2]
[334757175,1723535542344,-500.0,0.00020273,2]
[334757176,1723535542353,-1522.99,0.00020273,2]
[334757177,1723535542362,-914.8,0.00020273,2]
[334757178,1723535542372,-217.1280066,0.00020273,2]
[334757179,1723535542382,-295.79801051,0.00020273,2]
[334757180,1723535542391,-500.0,0.00020273,2]
[334757181,1723535542401,-500.0,0.00020273,2]
[334757182,1723535542411,-500.0,0.00020273,2]
[334757183,1723535542421,-682.0,0.00020273,2]
[334757184,1723535542430,-500.0,0.00020273,2]
[334757185,1723535542439,-500.0,0.00020273,2]
[334757186,1723535542448,-527.84528528,0.00020273,2]
[334757187,1723535542458,-500.0,0.00020273,2]
[334757188,1723535542467,-500.0,0.00020273,2]
[334757189,1723535542476,-428.94048014,0.00020273,2]
[334757190,1723535542486,-500.0,0.00020273,2]
[334757191,1723535542495,-500.0,0.00020273,2]
[334757192,1723535542504,-500.0,0.00020273,2]
[334757193,1723535542513,-282.78942547,0.00020273,2]
[334757194,1723535542523,-500.0,0.00020273,2]
[334757195,1723535542532,-500.0,0.00020273,2]
[334757196,1723535542541,-500.0,0.00020273,2]
[334757197,1723535542552,-620.94704138,0.00020273,2]
[334757198,1723535542565,-500.0,0.00020273,2]
[334757199,1723535542576,-562.12,0.00020273,2]
[334757200,1723535542585,-771.86642188,0.00020273,2]
[334757201,1723535542594,-5000.0,0.0002028,2]
[334757202,1723535542605,-700.0,0.00020286,2]
[334757203,1723535542614,-150.0,0.000203,4]
[334757204,1723535542623,-435.6,0.000203,2]
[334757205,1723535542633,-600.0,0.00020307,2]
[334757206,1723535542643,-1900.0,0.00020314,2]
[334757207,1723535542653,-1900.0,0.00020322,2]
[334757208,1723535542662,-999.36899537,0.00020322,2]
[334757209,1723535542671,-155.0,0.0002033,3]
[334757210,1723535542681,-700.0,0.0002034,2]
[334757211,1723535542690,-400.0,0.00020342,2]
[334757212,1723535542699,-5000.0,0.00020345,2]
[334757213,1723535542708,-5000.0,0.00020346,2]
[334757214,1723535542718,-700.0,0.00020346,2]
[334757215,1723535542729,-600.0,0.00020357,2]
[334757216,1723535542738,-224.38282423,0.00020388,4]
[334757217,1723535542748,-5000.0,0.00020392,2]
[334757218,1723535542759,-500.0,0.00020392,2]
[334757219,1723535542769,-304.3,0.000204,2]
[334757220,1723535542778,-5000.0,0.00020411,2]
[334757221,1723535542788,-500.0,0.00020413,2]
[334757222,1723535542798,-3400.0,0.00020428,2]
[334757223,1723535542808,-3300.0,0.00020444,2]
[334757224,1723535542818,-700.0,0.00020446,2]
[334757225,1723535542828,-524.71,0.00020447,2]
[334757226,1723535542838,-760.88,0.00020447,2]
[334757227,1723535542848,-679.99671694,0.00020449,2]
[334757228,1723535542857,-500.0,0.00020451,2]
[334757229,1723535542867,-5000.0,0.00020454,2]
[334757230,1723535542877,-600.0,0.00020468,2]
[334757231,1723535542886,-5000.0,0.00020469,2]
[334757232,1723535542896,-500.0,0.00020488,2]
[334757233,1723535542907,-150.0,0.00020493,4]
[334757234,1723535542916,-5000.0,0.00020501,2]
[334757235,1723535542926,-700.0,0.00020501,2]
[334757236,1723535542936,-224.38282423,0.00020515,4]
[334757237,1723535542946,-5000.0,0.0002052,2]
[334757238,1723535542955,-5000.0,0.00020526,2]
[334757239,1723535542965,-500.0,0.00020534,2]
[334757240,1723535542975,-5000.0,0.00020539,2]
[334757241,1723535542985,-25000.0,0.00020541,2]
[334757242,1723535542995,-500.7,0.00020541,2]
[334757243,1723535543004,-3214.8,0.00020547,2]
[334757244,1723535543015,-474.31377711,0.00020547,2]
[334757245,1723535543024,-235.82538175,0.00020547,2]
[334757246,1723535543033,-318.58033459,0.00020547,2]
[334757247,1723535543042,-702.35,0.00020547,2]
[334757248,1723535543053,-500.0,0.00020547,2]
[334757249,1723535543062,-571.12,0.00020547,2]
[334757250,1723535543071,-500.0,0.00020547,2]
[334757251,1723535543080,-500.0,0.00020547,2]
[334757252,1723535543089,-500.0,0.00020547,2]
[334757253,1723535543098,-500.0,0.00020547,2]
[334757254,1723535543108,-637.3631486,0.00020547,2]
[334757255,1723535543117,-500.0,0.00020547,2]
[334757256,1723535543126,-500.0,0.00020547,2]
[334757257,1723535543135,-500.0,0.00020547,2]
[334757258,1723535543145,-750.64,0.00020547,2]
[334757259,1723535543154,-500.0,0.00020547,2]
[334757260,1723535543163,-500.0,0.00020547,2]
[334757261,1723535543173,-482.46038596,0.00020547,2]
[334757262,1723535543182,-500.0,0.00020547,2]
[334757263,1723535543192,-500.0,0.00020547,2]
[334757264,1723535543201,-495.96140529,0.00020547,2]
[334757265,1723535543210,-189.45637732,0.00020547,2]
[334757266,1723535543220,-500.0,0.00020547,2]
[334757267,1723535543229,-500.0,0.00020547,2]
[334757268,1723535543238,-500.0,0.00020547,2]
[334757269,1723535543248,-500.0,0.00020547,2]
[334757270,1723535543257,-500.0,0.00020547,2]
[334757271,1723535543266,-500.0,0.00020547,2]
[334757272,1723535543275,-500.0,0.00020547,2]
[334757273,1723535543284,-500.0,0.00020547,2]
[334757274,1723535543292,-500.0,0.00020547,2]
[334757275,1723535543302,-500.0,0.00020547,2]
[334757276,1723535543311,-588.49,0.00020547,2]
[334757277,1723535543320,-1015.8,0.00020547,2]
[334757278,1723535543330,-500.0,0.00020547,2]
[334757279,1723535543339,-500.0,0.00020547,2]
[334757280,1723535543348,-554.09787926,0.00020547,2]
[334757281,1723535543358,-500.0,0.00020547,2]
[334757282,1723535543367,-302.00524438,0.00020547,2]
[334757283,1723535543377,-500.0,0.00020547,2]
[334757284,1723535543386,-2000.0,0.00020547,2]
[334757285,1723535543395,-500.0,0.00020547,2]
[334757286,1723535543404,-508.3,0.00020547,2]
[334757287,1723535543414,-340.89039176,0.00020547,2]
[334757288,1723535543424,-153.73191849,0.00020547,2]
[334757289,1723535543433,-500.0,0.00020547,2]
[334757290,1723535543442,-500.0,0.00020547,2]
[334757291,1723535543451,-500.0,0.00020547,2]
[334757292,1723535543460,-969.43,0.00020547,2]
[334757293,1723535543470,-500.0,0.00020547,2]
[334757294,1723535543479,-500.0,0.00020547,2]
[334757295,1723535543488,-281.93,0.00020547,2]
[334757296,1723535543498,-318.10625521,0.00020547,2]
[334757297,1723535543507,-500.0,0.00020547,2]
[334757298,1723535543516,-500.0,0.00020547,2]
[334757299,1723535543526,-788.34,0.00020547,2]
[334757300,1723535543535,-500.0,0.00020547,2]
[334757301,1723535543544,-500.0,0.00020547,2]
[334757302,1723535543554,-500.0,0.00020547,2]
[334757303,1723535543566,-242.67537751,0.00020547,2]
[334757304,1723535543576,-547.10380632,0.00020547,2]
[334757305,1723535543584,-500.0,0.00020547,2]
[334757306,1723535543594,-377.62299045,0.00020547,2]
[334757307,1723535543605,-500.0,0.00020547,2]
[334757308,1723535543614,-203.80979914,0.00020547,2]
[334757309,1723535543623,-500.0,0.00020547,2]
[334757310,1723535543634,-511.24906862,0.00020547,2]
[334757311,1723535543643,-500.0,0.00020547,2]
[334757312,1723535543653,-500.0,0.00020547,2]
[334757313,1723535543662,-500.0,0.00020547,2]
[334757314,1723535543671,-510.82,0.00020547,2]
[334757315,1723535543681,-500.0,0.00020547,2]
[334757316,1723535543690,-500.0,0.00020547,2]
[334757317,1723535543892,-500.0,0.00020547,2]
[334757318,1723535543902,-500.0,0.00020547,2]
[334757319,1723535543914,-2849.94,0.00020547,2]
[334757320,1723535543925,-1000.0,0.00020547,2]
[334757321,1723535543936,-500.0,0.00020547,2]
[334757322,1723535543945,-500.0,0.00020547,2]
[334757323,1723535543955,-14593.1620861,0.00020547,2]
[334757324,1723535543964,-500.0,0.00020547,2]
[334757325,1723535543974,-500.0,0.00020547,2]
[334757326,1723535543983,-179.58855194,0.00020547,2]
[334757327,1723535543992,-500.0,0.00020547,2]
[334757328,1723535544001,-500.0,0.00020547,2]
[334757329,1723535544011,-506.46,0.00020547,2]
[334757330,1723535544020,-903.07,0.00020547,2]
[334757331,1723535544029,-546.65,0.00020547,2]
[334757332,1723535544039,-500.0,0.00020547,2]
[334757333,1723535544048,-500.0,0.00020547,2]
[334757334,1723535544062,-500.0,0.00020547,2]
[334757335,1723535544071,-626.19,0.00020547,2]
[334757336,1723535544080,-500.0,0.00020547,2]
[334757337,1723535544091,-500.0,0.00020547,2]
[334757338,1723535544100,-500.0,0.00020547,2]
[334757339,1723535544110,-500.0,0.00020547,2]
[334757340,1723535544119,-1249.54,0.00020547,2]
[334757341,1723535544128,-400.0,0.00020547,2]
[334757342,1723535544138,-803.11,0.00020547,2]
[334757343,1723535544147,-500.0,0.00020547,2]
[334757344,1723535544157,-1655.36,0.00020547,2]
[334757345,1723535544166,-500.0,0.00020547,2]
[334757346,1723535544176,-500.0,0.00020547,2]
[334757347,1723535544185,-500.0,0.00020547,2]
[334757348,1723535544194,-500.0,0.00020547,2]
[334757349,1723535544203,-500.0,0.00020547,2]
[334757350,1723535544213,-500.0,0.00020547,2]
[334757351,1723535544222,-500.0,0.00020547,2]
[334757352,1723535544232,-602.7904282,0.00020547,2]
[334757353,1723535544241,-500.0,0.00020547,2]
[334757354,1723535544250,-500.0,0.00020547,2]
[334757355,1723535544260,-500.0,0.00020547,2]
[334757356,1723535544269,-1068.76,0.00020547,2]
[334757357,1723535544279,-500.0,0.00020547,2]
[334757358,1723535544288,-500.0,0.00020547,2]
[334757359,1723535544297,-500.0,0.00020547,2]
[334757360,1723535544307,-500.0,0.00020547,2]
[334757361,1723535544316,-500.0,0.00020547,2]
[334757362,1723535544325,-500.0,0.00020547,2]
[334757363,1723535544335,-613.06,0.00020547,2]
[334757364,1723535544344,-500.0,0.00020547,2]
[334757365,1723535544354,-500.0,0.00020547,2]
[334757366,1723535544363,-500.0,0.00020547,2]
[334757367,1723535544373,-284.21488969,0.00020547,2]
[334757368,1723535544382,-1522.99,0.00020547,2]
[334757369,1723535544391,-914.8,0.00020547,2]
[334757370,1723535544400,-348.11149709,0.00020547,2]
[334757371,1723535544410,-500.0,0.00020547,2]
[334757372,1723535544419,-232.44055568,0.00020547,2]
[334757373,1723535544429,-682.0,0.00020547,2]
[334757374,1723535544438,-500.0,0.00020547,2]
[334757375,1723535544449,-530.43803763,0.00020547,2]
[334757376,1723535544460,-500.0,0.00020547,2]
[334757377,1723535544471,-500.0,0.00020547,2]
[334757378,1723535544481,-500.0,0.00020547,2]
[334757379,1723535544490,-500.0,0.00020547,2]
[334757380,1723535544501,-500.0,0.00020547,2]
[334757381,1723535544512,-500.0,0.00020547,2]
[334757382,1723535544523,-500.0,0.00020547,2]
[334757383,1723535544533,-500.0,0.00020547,2]
[334757384,1723535544543,-500.0,0.00020547,2]
[334757385,1723535544557,-562.12,0.00020547,2]
[334757386,1723535544569,-426.41,0.00020548,2]
[334757387,1723535544578,-173.07,0.00020548,2]
[334757388,1723535544588,-20141.19,0.00020548,2]
[334757389,1723535544599,-338.18913153,0.00020553,2]
[334757390,1723535544610,-5000.0,0.00020558,2]
[334757391,1723535544620,-25000.0,0.00020559,2]
[334757392,1723535544631,-150.0,0.00020563,4]
[334757393,1723535544640,-5000.0,0.00020575,2]
[334757394,1723535544650,-500.0,0.00020577,2]
[334757395,1723535544661,-500.0,0.00020584,2]
[334757396,1723535544671,-700.0,0.0002059,2]
[334757397,1723535544680,-5000.0,0.00020592,2]
[334757398,1723535544691,-25000.0,0.00020611,2]
[334757399,1723535544701,-5000.0,0.00020625,2]
[334757400,1723535544711,-5000.0,0.00020628,2]
[334757401,1723535544721,-186.44,0.00020639,2]
[334757402,1723535544731,-224.38282423,0.00020642,4]
[334757403,1723535544740,-522.75705688,0.00020644,2]
[334757404,1723535544751,-500.0,0.00020647,2]
[334757405,1723535544760,-500.0,0.00020658,2]
[334757406,1723535544770,-150.0,0.00020668,4]
[334757407,1723535544779,-5000.0,0.00020672,2]
[334757408,1723535544789,-500.0,0.00020672,2]
[334757409,1723535544798,-5000.0,0.00020684,2]
[334757410,1723535544809,-5000.0,0.00020692,2]
[334757411,1723535544818,-3300.0,0.00020719,2]
[334757412,1723535544827,-5000.0,0.00020726,2]
[334757413,1723535544837,-5000.0,0.0002073,2]
[334757414,1723535544847,-150.0,0.00020731,4]
[334757415,1723535544856,-3300.0,0.00020732,2]
[334757416,1723535544866,-5000.0,0.00020733,2]
[334757417,1723535544875,-5000.0,0.00020738,2]
[334757418,1723535544885,-3400.0,0.00020745,2]
[334757419,1723535544894,-25000.0,0.00020749,2]
[334757420,1723535544903,-389.2089824,0.00020765,2]
[334757421,1723535544912,-224.38282423,0.0002077,4]
[334757422,1723535544921,-25000.0,0.00020778,2]
[334757423,1723535544930,-300.45,0.00020778,2]
[334757424,1723535544939,-5000.0,0.00020779,2]
[334757425,1723535544949,-152.0,0.00020784,7]
[334757426,1723535544958,-600.0,0.00020787,2]
[334757427,1723535544981,-5000.0,0.00020795,2]
[334757428,1723535544990,-1500.0,0.000208,14]
[334757429,1723535544999,-1011.4,0.000208,2]
[334757430,1723535545008,-600.0,0.00020814,2]
[334757431,1723535545018,-155.0,0.00020821,2]
[334757432,1723535545027,-3214.8,0.00020821,2]
[334757433,1723535545036,-702.35,0.00020821,2]
[334757434,1723535545046,-500.0,0.00020821,2]
[334757435,1723535545056,-571.12,0.00020821,2]
[334757436,1723535545065,-500.0,0.00020821,2]
[334757437,1723535545075,-500.0,0.00020821,2]
[334757438,1723535545084,-500.0,0.00020821,2]
[334757439,1723535545093,-500.0,0.00020821,2]
[334757440,1723535545102,-234.33114466,0.00020821,2]
[334757441,1723535545111,-500.0,0.00020821,2]
[334757442,1723535545121,-500.0,0.00020821,2]
[334757443,1723535545130,-750.64,0.00020821,2]
[334757444,1723535545140,-500.0,0.00020821,2]
[334757445,1723535545149,-500.0,0.00020821,2]
[334757446,1723535545159,-500.0,0.00020821,2]
[334757447,1723535545169,-500.0,0.00020821,2]
[334757448,1723535545178,-500.0,0.00020821,2]
[334757449,1723535545188,-500.0,0.00020821,2]
[334757450,1723535545197,-615.12532086,0.00020821,2]
[334757451,1723535545207,-500.0,0.00020821,2]
[334757452,1723535545216,-500.0,0.00020821,2]
[334757453,1723535545225,-500.0,0.00020821,2]
[334757454,1723535545234,-500.0,0.00020821,2]
[334757455,1723535545243,-463.28065027,0.00020821,2]
[334757456,1723535545253,-500.0,0.00020821,2]
[334757457,1723535545262,-500.0,0.00020821,2]
[334757458,1723535545272,-588.49,0.00020821,2]
[334757459,1723535545281,-1015.8,0.00020821,2]
[334757460,1723535545290,-500.0,0.00020821,2]
[334757461,1723535545300,-500.0,0.00020821,2]
[334757462,1723535545310,-500.0,0.00020821,2]
[334757463,1723535545320,-225.64362073,0.00020821,2]
[334757464,1723535545329,-2000.0,0.00020821,2]
[334757465,1723535545339,-500.0,0.00020821,2]
[334757466,1723535545349,-508.3,0.00020821,2]
[334757467,1723535545359,-500.0,0.00020821,2]
[334757468,1723535545368,-500.0,0.00020821,2]
[334757469,1723535545378,-500.0,0.00020821,2]
[334757470,1723535545388,-969.43,0.00020821,2]
[334757471,1723535545397,-253.42721856,0.00020821,2]
[334757472,1723535545407,-500.0,0.00020821,2]
[334757473,1723535545416,-500.0,0.00020821,2]
[334757474,1723535545426,-500.0,0.00020821,2]
[334757475,1723535545435,-788.34,0.00020821,2]
[334757476,1723535545444,-500.0,0.00020821,2]
[334757477,1723535545454,-500.0,0.00020821,2]
[334757478,1723535545463,-500.39291687,0.00020821,2]
[334757479,1723535545472,-500.0,0.00020821,2]
[334757480,1723535545482,-500.0,0.00020821,2]
[334757481,1723535545492,-567.11016723,0.00020821,2]
[334757482,1723535545501,-424.73946485,0.00020821,2]
[334757483,1723535545511,-500.0,0.00020821,2]
[334757484,1723535545520,-500.0,0.00020821,2]
[334757485,1723535545530,-510.82,0.00020821,2]
[334757486,1723535545539,-173.76144544,0.00020821,2]
[334757487,1723535545549,-462.75590808,0.00020821,2]
[334757488,1723535545567,-500.0,0.00020821,2]
[334757489,1723535545576,-500.0,0.00020821,2]
[334757490,1723535545586,-2849.94,0.00020821,2]
[334757491,1723535545595,-1000.0,0.00020821,2]
[334757492,1723535545606,-500.0,0.00020821,2]
[334757493,1723535545616,-500.0,0.00020821,2]
[334757494,1723535545626,-500.0,0.00020821,2]
[334757495,1723535545636,-500.0,0.00020821,2]
[334757496,1723535545646,-500.0,0.00020821,2]
[334757497,1723535545656,-500.0,0.00020821,2]
[334757498,1723535545669,-506.46,0.00020821,2]
[334757499,1723535545678,-903.07,0.00020821,2]
[334757500,1723535545688,-546.65,0.00020821,2]
[334757501,1723535545697,-500.0,0.00020821,2]
[334757502,1723535545707,-500.0,0.00020821,2]
[334757503,1723535545716,-500.0,0.00020821,2]
[334757504,1723535545726,-626.19,0.00020821,2]
[334757505,1723535545735,-500.0,0.00020821,2]
[334757506,1723535545745,-500.0,0.00020821,2]
[334757507,1723535545755,-500.0,0.00020821,2]
[334757508,1723535545765,-500.0,0.00020821,2]
[334757509,1723535545774,-1249.54,0.00020821,2]
[334757510,1723535545783,-400.0,0.00020821,2]
[334757511,1723535545793,-803.11,0.00020821,2]
[334757512,1723535545803,-500.0,0.00020821,2]
[334757513,1723535545813,-1655.36,0.00020821,2]
[334757514,1723535545822,-500.0,0.00020821,2]
[334757515,1723535545832,-500.0,0.00020821,2]
[334757516,1723535545841,-500.0,0.00020821,2]
[334757517,1723535545851,-500.0,0.00020821,2]
[334757518,1723535545862,-500.0,0.00020821,2]
[334757519,1723535545872,-500.0,0.00020821,2]
[334757520,1723535545882,-542.90279235,0.00020821,2]
[334757521,1723535545891,-500.0,0.00020821,2]
[334757522,1723535545900,-500.0,0.00020821,2]
[334757523,1723535545910,-500.0,0.00020821,2]
[334757524,1723535545920,-1068.76,0.00020821,2]
[334757525,1723535545930,-500.0,0.00020821,2]
[334757526,1723535545940,-500.0,0.00020821,2]
[334757527,1723535545950,-500.0,0.00020821,2]
[334757528,1723535545959,-500.0,0.00020821,2]
[334757529,1723535545969,-500.0,0.00020821,2]
[334757530,1723535545980,-174.43271813,0.00020821,2]
[334757531,1723535545989,-613.06,0.00020821,2]
[334757532,1723535545999,-500.0,0.00020821,2]
[334757533,1723535546009,-500.0,0.00020821,2]
[334757534,1723535546019,-500.0,0.00020821,2]
[334757535,1723535546028,-1522.99,0.00020821,2]
[334757536,1723535546038,-914.8,0.00020821,2]
[334757537,1723535546048,-500.0,0.00020821,2]
[334757538,1723535546059,-682.0,0.00020821,2]
[334757539,1723535546068,-500.0,0.00020821,2]
[334757540,1723535546077,-500.0,0.00020821,2]
[334757541,1723535546087,-500.0,0.00020821,2]
[334757542,1723535546096,-500.0,0.00020821,2]
[334757543,1723535546107,-500.0,0.00020821,2]
[334757544,1723535546118,-500.0,0.00020821,2]
[334757545,1723535546129,-500.0,0.00020821,2]
[334757546,1723535546139,-500.0,0.00020821,2]
[334757547,1723535546148,-500.0,0.00020821,2]
[334757548,1723535546158,-500.0,0.00020821,2]
[334757549,1723535546168,-562.12,0.00020821,2]
[334757550,1723535546179,-1103.589328,0.00020822,2]
[334757551,1723535546188,-150.0,0.00020826,4]
[334757552,1723535546198,-1900.0,0.00020828,2]
[334757553,1723535546208,-500.0,0.00020832,2]
[334757554,1723535546218,-500.0,0.00020846,2]
[334757555,1723535546228,-500.0,0.00020859,2]
[334757556,1723535546237,-500.0,0.00020879,2]
[334757557,1723535546247,-5000.0,0.0002088,2]
[334757558,1723535546256,-5000.0,0.00020889,2]
[334757559,1723535546265,-600.0,0.00020892,2]
[334757560,1723535546275,-5000.0,0.00020893,2]
[334757561,1723535546285,-3400.0,0.00020893,2]
[334757562,1723535546295,-224.38282423,0.00020897,4]
[334757563,1723535546305,-155.0,0.00020899,2]
[334757564,1723535546315,-1700.0,0.000209,7]
[334757565,1723535546324,-5000.0,0.00020912,2]
[334757566,1723535546334,-500.0,0.00020916,2]
[334757567,1723535546343,-5000.0,0.00020919,2]
[334757568,1723535546352,-700.0,0.00020925,2]
[334757569,1723535546363,-208.12925327,0.00020925,2]
[334757570,1723535546373,-500.0,0.00020929,2]
[334757571,1723535546383,-25000.0,0.00020933,2]
[334757572,1723535546393,-500.0,0.00020939,2]
[334757573,1723535546402,-5000.0,0.00020952,2]
[334757574,1723535546412,-5000.0,0.00020953,2]
[334757575,1723535546421,-5000.0,0.00020959,2]
[334757576,1723535546431,-500.0,0.00020967,2]
[334757577,1723535546442,-150.0,0.00020969,4]
[334757578,1723535546453,-600.0,0.00020984,2]
[334757579,1723535546463,-1210.806474,0.00020988,2]
[334757580,1723535546473,-5000.0,0.00020995,2]
[334757581,1723535546484,-5000.0,0.00020999,2]
[334757582,1723535546495,-225.73968689,0.00021,2]
[334757583,1723535546504,-265.87,0.00021,2]
[334757584,1723535546513,-574.54,0.00021,5]
[334757585,1723535546524,-3000.0,0.00021,2]
[334757586,1723535546533,-3000.0,0.00021,2]
[334757587,1723535546543,-3000.0,0.00021,2]
[334757588,1723535546553,-3000.0,0.00021,2]
[334757589,1723535546567,-3000.0,0.00021,2]
[334757590,1723535546578,-1022.32,0.00021,2]
[334757591,1723535546587,-474.46733026,0.00021,2]
[334757592,1723535546599,-10540.79,0.00021,2]
[334757593,1723535546609,-20083.04136894,0.00021,4]
[334757594,1723535546620,-11355.43437977,0.00021,4]
[334757595,1723535546631,-168666.64043965,0.00021,4]
[334757596,1723535546641,-16657.84809101,0.00021,4]
[334757597,1723535546650,-7988.45170222,0.00021,4]
[334757598,1723535546660,-275.5,0.00021,2]
[334757599,1723535546670,-340.0,0.00021,2]
[334757600,1723535546679,-507.52715445,0.00021004,2]
[334757601,1723535546691,-224.38282423,0.00021025,4]
[334757602,1723535546700,-500.0,0.00021035,2]
[334757603,1723535546712,-500.0,0.00021082,2]
[334757604,1723535546724,-150.0,0.00021089,4]
[334757605,1723535546734,-150.0,0.00021089,4]
[334757606,1723535546744,-700.0,0.00021091,2]
[334757607,1723535546755,-3214.8,0.00021095,2]
[334757608,1723535546766,-702.35,0.00021095,2]
[334757609,1723535546776,-500.0,0.00021095,2]
[334757610,1723535546785,-571.12,0.00021095,2]
[334757611,1723535546796,-498.93,0.00021095,2]
[334757612,1723535546806,-500.0,0.00021095,2]
[334757613,1723535546815,-500.0,0.00021095,2]
[334757614,1723535546824,-500.0,0.00021095,2]
[334757615,1723535546833,-556.24212706,0.00021095,2]
[334757616,1723535546842,-750.64,0.00021095,2]
[334757617,1723535546851,-500.0,0.00021095,2]